[Event "34th GER-ch Seniors-50 2022"]
[Site "Magdeburg"]
[Date "2022.08.18"]
[Round "7.3"]
[White "Reddmann, Hauke"]
[Black "Kauch, Markus"]
[Result "1-0"]
[ECO "D00"]
[WhiteElo "2181"]
[BlackElo "2169"]
[Annotator "TA"]
[PlyCount "63"]
[EventDate "2022.08.12"]
[EventType "swiss"]
[EventCountry "GER"]
[SourceTitle "playchess.com"]
[Source "ChessBase"]
[SourceQuality "1"]
[TimeControl "40/5400+30:1800+30"]

{[%evp 9,63,20,31,0,4,-71,25,31,28,25,28,19,11,-127,-136,-129,-95,-121,-92,-169,-171,-177,-138,-138,-130,-142,-145,-147,-159,-148,-109,-216,-206,-335,-226,-212,-211,-208,0,0,289,296,291,268,381,380,346,273,477,237,470,456,466,450,444,231]} 1. d4 {[%emt 0:00:02]} d5 {[%emt 0:00:11]} 2. Bf4 {[%emt 0:00:04]} c6 {[%emt 0:00:14]} 3. e3 {[%emt 0:00:52]} Qb6 {[%emt 0:00:23]} 4. b3 {[%emt 0:01:03]} Bf5 {[%emt 0:00:31]} 5. Nf3 {[%emt 0:00:52]} Nf6 {[%emt 0:02:09]} 6. Nh4 {[%emt 0:04:17] D00: 1 d4 d5: Unusual lines.} Bg4 {[%emt 0:03:47] [#]} 7. f3 $146 {[%emt 0:00:48]} (7. Be2 $11 Bxe2 8. Qxe2) ({Predecessor:} 7. Qd3 e6 8. Nd2 c5 9. h3 Bh5 10. g4 Bg6 11. Nxg6 hxg6 12. Bg2 Nc6 13. c3 cxd4 14. exd4 {½-½ (54) Krumpacnik,D (2356)-Jeran,B (2229) Konjice 2009}) 7... Bh5 {[%emt 0:01:10]} (7... Bd7 $17) 8. g4 $11 {[%emt 0:01:14] Active counter play! White has an edge.} Bg6 {[%emt 0:00:14]} 9. Nxg6 {[%emt 0:01:06]} hxg6 {[%emt 0:00:08]} 10. c4 {[%emt 0:03:53]} Nbd7 {[%emt 0:13:48][%cal Oe7e5]} 11. Bg2 {[%emt 0:10:27]} (11. c5 $11 {keeps the balance.} Qa5+ 12. Kf2) 11... dxc4 $17 {[%emt 0:07:00]} (11... e5 12. dxe5 g5 13. Bxg5 Nxe5 14. Qe2 $15) 12. bxc4 {[%emt 0:00:12]} e5 {[%emt 0:00:12]} 13. dxe5 {[%emt 0:02:39]} Qa5+ {[%emt 0:01:40]} 14. Kf2 {[%emt 0:01:49]} (14. Ke2 $17 {was necessary.} Nxe5 15. Qd4) 14... Nxe5 {[%emt 0:01:01]} 15. Qd4 {[%emt 0:04:43]} Nfd7 {[%emt 0:05:38]} 16. Rd1 {[%emt 0:02:16]} O-O-O {[%emt 0:07:53]} 17. Bf1 {[%emt 0:03:16]} Bc5 {[%emt 0:06:14]} 18. Qc3 {[%emt 0:04:26] [#]} Bb4 {[%emt 0:05:21]} 19. Qb2 {[%emt 0:01:38]} Rde8 {[%emt 0:15:56][%cal Og6g5]} 20. a3 {[%emt 0:06:57]} (20. Kg2 $17) 20... Bc5 $19 {[%emt 0:00:59][%cal Oc5e3] ...Bxe3+! is the strong threat.} 21. Qc3 {[%emt 0:06:51]} (21. Kg2 $142) 21... Qc7 {[%emt 0:11:04][%cal Oe5g4]} 22. Kg2 {[%emt 0:03:01]} g5 {[%emt 0:03:56]} 23. Bg3 {[%emt 0:00:20] [#]} Qb6 $2 {[%emt 0:00:30]} (23... f5 $1 $19 {[%cal Rf5f4] And now ...f4 would win.} 24. gxf5 g4) 24. Nd2 $1 $11 {[%emt 0:02:56] Strongly threatening Ne4.} Nxg4 $2 {[%emt 0:04:33][%mdl 8192]} 25. fxg4 $18 {[%emt 0:00:42]} Rxe3 {[%emt 0:00:05]} 26. Qc2 {[%emt 0:03:35] Threatens to win with Rab1.} ({Don't take} 26. Qxg7 Bd4 27. Qxg5 (27. Qxf7 Rf8 $11) 27... f6 $18) 26... Qd8 {[%emt 0:04:54]} (26... f5 $142 27. gxf5 Nf6) 27. Ne4 {[%emt 0:02:19]} Qe7 {[%emt 0:00:02]} 28. Nxc5 {[%emt 0:04:13]} Qxc5 {[%emt 0:02:46]} (28... Nxc5 29. Qf2 (29. Qf5+ Qe6 $18) 29... Nb3) 29. Qf5 {[%emt 0:01:04]} ({Weaker is} 29. Qd2 Qe7 $18) (29. Bd6 $142 Qa5 30. Rab1) 29... Qe7 {[%emt 0:00:01]} (29... Qxf5 30. gxf5 Re4) 30. Re1 {[%emt 0:01:20] White is clearly winning.} g6 {[%emt 0:01:46]} 31. Rxe3 {[%emt 0:01:29]} Qxe3 {[%emt 0:00:03]} 32. Qd3 {[%emt 0:01:24] Weighted Error Value: White=0.40/Black=0.64} (32. Qxf7 $142 Qe4+ 33. Qf3 Qxf3+ 34. Kxf3) 1-0

[Event "34th GER-ch Seniors-50 2022"]
[Site "Magdeburg"]
[Date "2022.08.18"]
[Round "7.4"]
[White "Schatz, Christian"]
[Black "Hirn, Oskar"]
[Result "1/2-1/2"]
[ECO "D36"]
[WhiteElo "2137"]
[BlackElo "2188"]
[Annotator "TA"]
[PlyCount "31"]
[EventDate "2022.08.12"]
[EventType "swiss"]
[EventCountry "GER"]
[SourceTitle "playchess.com"]
[Source "ChessBase"]
[SourceQuality "1"]
[TimeControl "40/5400+30:1800+30"]

{[%evp 25,31,67,87,0,0,-13,-31,-21]} 1. d4 {[%emt 0:00:03]} Nf6 {[%emt 0:00:45]} 2. Nf3 {[%emt 0:01:03]} d5 {[%emt 0:03:08]} 3. c4 {[%emt 0:01:11]} e6 {[%emt 0:01:22][%cal Be7e6,Be6d5][%mdl 32]} 4. Nc3 {[%emt 0:02:21]} Be7 {[%emt 0:01:32]} 5. Bg5 {[%emt 0:00:56]} Nbd7 {[%emt 0:05:08]} 6. e3 {[%emt 0:03:06]} O-O {[%emt 0:01:31]} 7. cxd5 {[%emt 0:02:57]} exd5 {[%emt 0:03:35]} 8. Bd3 {[%emt 0:00:49]} c6 {[%emt 0:03:20]} 9. Qc2 {[%emt 0:01:28]} Re8 {[%emt 0:03:16]} 10. O-O {[%emt 0:01:11]} Ne4 {[%emt 0:01:45]} 11. Bxe4 {[%emt 0:08:43]} dxe4 {[%emt 0:01:28]} 12. Nxe4 {[%emt 0:06:17]} Bxg5 {[%emt 0:02:08]} 13. Nexg5 {[%emt 0:02:57]} Nf8 $1 {[%emt 0:04:52] [#]} 14. Qb3 {[%emt 0:08:42] White is more active. D36: Queen's Gambit Declined: Exchange Variation: Main line (5 Bg5 c6 6 Qc2).} ({White should play} 14. Ne4 $1 $16) 14... Qf6 $1 $11 {[%emt 0:01:02] [#]} 15. Qc2 $146 {[%emt 0:14:06]} (15. Qd3 $5 {[%cal Rg5e4]}) ({Predecessor:} 15. Qd3 Bf5 16. e4 Bg6 17. Qe3 h6 18. e5 Qf5 19. Nh3 Ne6 20. Nh4 Qg4 21. Nxg6 fxg6 {0-1 (54) Martirosyan,H (2622)-Gukesh,D (2563) Chess.com INT 2020}) 15... Bf5 {[%emt 0:15:58][%mdl 1024] Inhibits Ne4. Black has compensation.} 16. e4 {[%emt 0:02:31] An interesting draw.} 1/2-1/2

[Event "34th GER-ch Seniors-50 2022"]
[Site "Magdeburg"]
[Date "2022.08.18"]
[Round "7.5"]
[White "Koscielski, Janusz"]
[Black "Willsch, Matthias"]
[Result "1/2-1/2"]
[ECO "C08"]
[WhiteElo "2255"]
[BlackElo "2104"]
[Annotator "TA"]
[PlyCount "169"]
[EventDate "2022.08.12"]
[EventType "swiss"]
[EventCountry "GER"]
[SourceTitle "playchess.com"]
[Source "ChessBase"]
[SourceQuality "1"]
[TimeControl "40/5400+30:1800+30"]

{[%evp 17,169,8,4,6,19,22,32,0,-7,-18,0,-30,-25,-16,0,-15,0,-52,-6,-47,0,-45,-24,-38,-33,-57,-37,-39,-23,-45,-40,-64,-47,-62,-62,-65,-62,-76,-42,-53,-62,-51,-29,-70,-60,-58,-45,-46,-21,-23,-32,-48,0,0,0,0,0,0,0,0,10,4,8,0,9,0,0,0,0,0,4,4,4,4,8,8,18,11,49,21,23,23,24,16,30,16,16,22,14,15,61,61,88,89,218,218,218,218,218,218,218,216,217,216,215,197,180,133,272,123,243,223,250,222,264,133,193,191,191,193,180,179,170,139,165,154,154,154,154,154,211,211,211,0,187,0,0,0,0,0,0,0,60,0,0,0,0,0,0,0,0,0,0,0]} 1. e4 {[%emt 0:00:10]} e6 {[%emt 0:00:05]} 2. d4 {[%emt 0:00:09]} d5 {[%emt 0:00:07]} 3. Nd2 {[%emt 0:00:12]} c5 {[%emt 0:00:07]} 4. exd5 {[%emt 0:00:12]} exd5 {[%emt 0:00:07]} 5. Ngf3 {[%emt 0:00:46]} a6 {[%emt 0:00:12]} 6. Be2 {[%emt 0:05:18]} Nf6 {[%emt 0:00:43]} 7. O-O {[%emt 0:01:22]} Be7 {[%emt 0:00:17]} 8. dxc5 {[%emt 0:01:26]} Bxc5 {[%emt 0:00:07]} 9. Nb3 {[%emt 0:01:15]} Bb6 $1 {[%emt 0:00:07] The main line 9...Bb6 scores better than 9...Ba7.} 10. Bg5 {[%emt 0:05:33] C08: French Tarrasch: 3...c5 4 exd5 exd5 sidelines.} O-O {[%emt 0:01:47]} 11. c3 {[%emt 0:01:41]} Re8 {[%emt 0:01:49]} 12. h3 {[%emt 0:17:19] White is slightly better.} Nc6 {[%emt 0:02:49]} 13. Bd3 {[%emt 0:05:33]} Qd6 {[%emt 0:04:33][%cal Oc8h3]} (13... h6 $5 {[%cal Rh6g5]} 14. Bxf6 Qxf6 $11) 14. Nbd4 {[%emt 0:12:18]} Ne4 {[%emt 0:08:28]} 15. Be3 {[%emt 0:01:19]} Bc7 {[%emt 0:07:28] [#]} 16. Re1 $146 {[%emt 0:05:07]} ({Predecessor:} 16. Nxc6 bxc6 17. Re1 Rb8 18. Qc2 Bf5 19. c4 Bg6 20. c5 Qd7 21. a3 f5 22. b4 f4 23. Bd4 {1-0 (42) Muhammed,S (1893)-Dobrowolski,P (2413) Chess.com INT 2020}) 16... Bd7 {[%emt 0:02:12]} 17. Rc1 {[%emt 0:03:55]} (17. Nxc6 $11 bxc6 18. c4) 17... Rad8 {[%emt 0:11:36]} (17... Nxd4 $15 18. cxd4 f6) 18. Bf1 {[%emt 0:04:06]} Nxd4 {[%emt 0:04:05]} (18... Qg6 $15) 19. cxd4 {[%emt 0:06:14]} Bb8 {[%emt 0:05:43]} 20. Rc2 {[%emt 0:06:31]} Bf5 {[%emt 0:03:19][%cal Bd7f5,Bf5g6,Bg6h5][%mdl 32]} 21. Rce2 {[%emt 0:01:08]} Bg6 {[%emt 0:06:55]} 22. g3 {[%emt 0:02:43]} Qd7 {[%emt 0:00:30]} 23. Bg2 {[%emt 0:00:30][%cal Of3e5]} f6 {[%emt 0:00:30] Inhibits Ne5.} 24. Nd2 {[%emt 0:00:30]} Bh5 {[%emt 0:00:30]} 25. g4 {[%emt 0:00:30]} Bg6 {[%emt 0:00:30]} 26. Nf1 {[%emt 0:00:30]} h5 {[%emt 0:00:30]} 27. f3 {[%emt 0:04:20]} Ng3 {[%emt 0:09:47]} 28. Nxg3 {[%emt 0:00:35]} Bxg3 {[%emt 0:00:06]} 29. Bf2 {[%emt 0:00:36]} Bb8 {[%emt 0:01:03]} 30. Qd2 {[%emt 0:01:36]} Rxe2 {[%emt 0:02:19]} 31. Rxe2 {[%emt 0:02:34]} Rc8 {[%emt 0:01:31]} 32. Qe3 {[%emt 0:02:21]} Qc7 {[%emt 0:01:48] With the idea ...Qh2+.} 33. f4 {[%emt 0:02:46]} Bf7 {[%emt 0:05:47]} 34. f5 $1 {[%emt 0:01:00]} Qc1+ {[%emt 0:00:50]} (34... b5 $15) 35. Qxc1 $11 {[%emt 0:00:39]} Rxc1+ {[%emt 0:00:03]} 36. Bf1 $1 {[%emt 0:00:53]} ({Much worse is} 36. Re1 Rc2 $15) 36... hxg4 {[%emt 0:01:04]} 37. hxg4 {[%emt 0:00:07]} Kf8 {[%emt 0:01:58]} 38. Be3 {[%emt 0:01:19]} Rc8 {[%emt 0:02:25]} 39. Kf2 {[%emt 0:00:53]} g5 {[%emt 0:01:14]} 40. Bg2 {[%emt 0:02:22]} Ba7 {[%emt 0:01:34]} 41. Bf3 {[%emt 0:08:40]} Rc4 {[%emt 0:02:23]} 42. Rd2 {[%emt 0:02:41]} Bb6 {[%emt 0:00:52]} 43. Bd1 {[%emt 0:02:40]} Rc8 {[%emt 0:01:46]} 44. Rd3 {[%emt 0:02:29]} Rc7 {[%emt 0:03:50]} 45. Bb3 {[%emt 0:03:37]} Ba7 {[%emt 0:02:23]} 46. Bd2 {[%emt 0:01:28]} Rc8 {[%emt 0:02:13]} 47. Bc3 {[%emt 0:01:32]} Re8 {[%emt 0:01:02]} 48. Bd1 {[%emt 0:01:50]} Rc8 {[%emt 0:02:19]} 49. Bf3 {[%emt 0:01:06]} Rc4 {[%emt 0:01:09]} 50. a3 {[%emt 0:00:32]} Bb6 {[%emt 0:01:42]} 51. Rd1 {[%emt 0:00:28]} Rc8 {[%emt 0:06:38]} 52. Re1 {[%emt 0:00:31]} Bd8 {[%emt 0:03:39]} 53. Ke3 {[%emt 0:03:39]} Kg7 {[%emt 0:01:00]} (53... Be7 $11 {feels stronger.}) 54. Kd3 $14 {[%emt 0:00:18]} Rc6 {[%emt 0:00:42]} 55. Bb4 {[%emt 0:00:52] White is more active.} Rc4 {[%emt 0:00:47] [#]} (55... Bb6 $16 {might work better.}) 56. Bc5 $1 $18 {[%emt 0:01:53]} b6 {[%emt 0:08:34]} 57. b3 {[%emt 0:01:39]} bxc5 {[%emt 0:02:51]} 58. bxc4 {[%emt 0:00:07]} dxc4+ {[%emt 0:00:05][%mdl 4096] Endgame KRB-KB} 59. Ke4 {[%emt 0:00:42]} cxd4 {[%emt 0:00:27]} 60. Kxd4 {[%emt 0:00:08]} Bb6+ {[%emt 0:00:14]} 61. Ke4 {[%emt 0:00:20]} Bc5 {[%emt 0:00:42]} 62. a4 {[%emt 0:01:16]} (62. Rb1 $18) 62... Ba3 {[%emt 0:00:29]} (62... a5 $16 63. Rd1 c3) 63. Bd1 {[%emt 0:03:47]} (63. Rb1 $18 {and the rest is easy.}) 63... Bb2 {[%emt 0:00:59]} (63... Bb4 $16 64. Rh1 c3) 64. Bc2 {[%emt 0:00:17]} Kf8 {[%emt 0:00:45]} 65. Rb1 {[%emt 0:00:16]} c3 {[%emt 0:00:30]} 66. Kd4 {[%emt 0:00:39]} ({Better is} 66. Rh1 $18) 66... Bb3 {[%emt 0:00:55]} (66... a5 $16 {was called for.} 67. Kc5 Ba2) 67. Kd3 {[%emt 0:01:21]} Bd5 {[%emt 0:00:34]} 68. Ke3 {[%emt 0:00:27] Threatens to win with Rd1.} Ke7 {[%emt 0:00:07]} 69. Rd1 {[%emt 0:00:25]} Bc6 {[%emt 0:00:39]} 70. Rd4 {[%emt 0:00:34]} a5 {[%emt 0:01:20]} 71. Rc4 {[%emt 0:00:49]} Kd6 {[%emt 0:00:15]} 72. Be4 {[%emt 0:00:31]} Bd7 {[%emt 0:01:02]} 73. Kd3 {[%emt 0:00:23]} Ke5 {[%emt 0:01:37]} (73... Be8 $16 74. Bg2 Ba1) 74. Bc6 {[%emt 0:00:18]} Bc8 {[%emt 0:00:19]} 75. Re4+ {[%emt 0:00:25]} Kd6 {[%emt 0:00:11] [#]} 76. Bb5 $2 {[%emt 0:00:19]} (76. Ba8 $1 $18) 76... Bb7 $1 $11 {[%emt 0:00:17]} 77. Re6+ {[%emt 0:00:41]} Kc5 {[%emt 0:00:19]} 78. Kc2 {[%emt 0:00:57] Bd3 is the strong threat.} Bf3 {[%emt 0:01:04]} 79. Be2 {[%emt 0:00:20]} Bd5 {[%emt 0:00:30]} (79... Bc6 $11) 80. Rxf6 {[%emt 0:00:28]} (80. Ra6 $1 $14) 80... Be4+ {[%emt 0:00:27] The position is equal.} 81. Kb3 {[%emt 0:00:43] Strongly threatening Rf8.} Bd5+ {[%emt 0:00:12]} 82. Kc2 {[%emt 0:00:10]} Be4+ {[%emt 0:00:03]} 83. Kb3 {[%emt 0:00:36] aiming for Rf8.} Bd5+ {[%emt 0:00:09]} 84. Kc2 {[%emt 0:00:09] Hoping for Ra6.} Be4+ {[%emt 0:00:05]} 85. Kb3 {[%emt 0:00:40] Black escapes into a draw.  Weighted Error Value: White=0.09 (flawless) /Black=0.13 (very precise)} 1/2-1/2

[Event "34th GER-ch Seniors-50 2022"]
[Site "Magdeburg"]
[Date "2022.08.18"]
[Round "7.6"]
[White "Heck, Norbert"]
[Black "Moritz, Hartmut"]
[Result "1-0"]
[ECO "D70"]
[WhiteElo "2249"]
[BlackElo "2057"]
[Annotator "TA"]
[PlyCount "99"]
[EventDate "2022.08.12"]
[EventType "swiss"]
[EventCountry "GER"]
[SourceTitle "playchess.com"]
[Source "ChessBase"]
[SourceQuality "1"]
[TimeControl "40/5400+30:1800+30"]

{[%evp 13,99,14,6,4,47,52,65,64,72,49,67,55,53,58,83,84,87,79,95,69,74,67,75,63,89,90,81,72,85,78,91,89,204,0,118,120,156,116,115,130,139,120,242,143,148,145,238,239,264,252,287,268,452,446,442,424,446,441,526,463,761,759,760,744,752,744,721,677,733,695,753,742,739,635,1407,1142,1228,1066,12795,12627,7708,8810,7561,5341,12356,10547,5089,5065]} 1. Nf3 {[%emt 0:00:04]} d5 {[%emt 0:00:43]} 2. d4 {[%emt 0:00:09]} Nf6 {[%emt 0:00:14]} 3. c4 {[%emt 0:00:09]} c6 {[%emt 0:00:13]} 4. Nbd2 {[%emt 0:00:51]} g6 {[%emt 0:04:52]} 5. e3 {[%emt 0:00:18]} Bg7 {[%emt 0:00:38]} 6. Bd3 {[%emt 0:00:11]} O-O {[%emt 0:01:18]} 7. O-O {[%emt 0:00:09]} Nbd7 {[%emt 0:01:19]} 8. b3 {[%emt 0:00:39] [#] D70: Grünfeld: Unusual White 3rd moves (met by ...d5).} Ng4 $146 {[%emt 0:09:35]} ({Predecessor:} 8... b6 9. Bb2 Bb7 10. Rc1 e6 11. c5 bxc5 12. dxc5 Qe7 13. b4 e5 14. e4 dxe4 15. Nxe4 Nxe4 16. Bxe4 {1-0 (46) Nakamura,H (2736)-Sadhwani,R (2545) Chess.com INT 2020}) 9. h3 {[%emt 0:01:52]} Nh6 {[%emt 0:02:59]} 10. Bb2 {[%emt 0:00:32] White is slightly better.} f5 {[%emt 0:10:11]} 11. cxd5 {[%emt 0:08:13]} cxd5 {[%emt 0:00:30]} 12. Rc1 {[%emt 0:00:45]} Nf7 {[%emt 0:01:33]} 13. Qc2 {[%emt 0:01:17]} e5 {[%emt 0:01:43]} 14. dxe5 {[%emt 0:00:59] White is more active.} Ndxe5 {[%emt 0:01:46]} 15. Be2 {[%emt 0:01:15]} Bd7 {[%emt 0:04:11]} 16. Nd4 {[%emt 0:03:04]} Rc8 {[%emt 0:01:08]} 17. Qb1 {[%emt 0:00:12]} Qe7 {[%emt 0:04:27]} 18. N2f3 {[%emt 0:01:08]} Rfe8 {[%emt 0:00:40]} 19. Rxc8 {[%emt 0:00:57]} Rxc8 {[%emt 0:01:47]} 20. Rd1 {[%emt 0:00:16]} a6 {[%emt 0:10:31]} 21. Nxe5 {[%emt 0:13:47]} Nxe5 {[%emt 0:01:00]} 22. Nf3 {[%emt 0:01:23]} Bb5 {[%emt 0:05:47]} (22... Bc6 $16 {was necessary.}) 23. Nd4 $2 {[%emt 0:05:40]} (23. Rxd5 $6 Nxf3+ 24. Bxf3 Bc6 $16) ({Better is} 23. Bxb5 $18 Nxf3+ 24. gxf3 axb5 25. Bxg7 (25. Rxd5 Rd8 $16) 25... Kxg7 26. Rxd5) 23... Bxe2 {[%emt 0:03:45]} (23... Bd7 $11) 24. Nxe2 $16 {[%emt 0:00:09][%cal Bd4e2,Be2f4,Bf4d5][%mdl 32]} Qc5 {[%emt 0:10:47]} 25. Rc1 {[%emt 0:03:45] Inhibits Qc2.} Qf8 {[%emt 0:00:22]} 26. Nf4 {[%emt 0:03:07] Black must now prevent Ne6.} Rxc1+ {[%emt 0:01:36]} 27. Qxc1 {[%emt 0:06:47] Strongly threatening Ne6.} Qe8 {[%emt 0:03:05] Prevents Ne6. This costs Black the game.} (27... Kf7 $16 28. Nxd5 Qd6) 28. Qa1 {[%emt 0:02:57]} ({Less strong is} 28. Nxd5 Nd3 29. Qc4 Nxb2 $16) (28. Qc7 $18) 28... g5 {[%emt 0:06:47]} 29. Nxd5 {[%emt 0:00:21] aiming for f4.} g4 {[%emt 0:00:21]} (29... Qe6 $16 {might work better.}) 30. Nf4 $18 {[%emt 0:02:50]} h5 {[%emt 0:02:32]} 31. Bd4 {[%emt 0:01:21]} h4 {[%emt 0:01:37]} 32. Qc3 {[%emt 0:01:00]} g3 $2 {[%emt 0:01:49]} (32... gxh3 33. Qc7 (33. gxh3 Nf3+ 34. Kg2 Qe4 $16) (33. Nxh3 Qc6 $18) 33... hxg2 34. Qxb7 h3 35. Qd5+ Kh7 36. Nxh3 Qh5) 33. fxg3 {[%emt 0:03:54] White is clearly winning.} (33. Qc7 Qc6 34. Qd8+ (34. Bxe5 Bxe5 35. Qxc6 gxf2+ 36. Kxf2 bxc6 $18) 34... Kf7 35. fxg3 Bf6 36. Qd5+ Qxd5 37. Nxd5 Bh8 38. gxh4 Bg7 $18) 33... hxg3 {[%emt 0:00:10]} 34. Ne2 {[%emt 0:03:34]} Qb8 {[%emt 0:02:33]} 35. Kh1 {[%emt 0:04:40]} Qd6 {[%emt 0:04:29]} 36. Qc8+ {[%emt 0:00:47]} Qf8 {[%emt 0:00:37]} (36... Bf8 $142 37. Qxf5 Nc6 38. Qg4+ Kf7 39. Nxg3 Qe6 40. Qh5+ Qg6 41. Qf3+ Ke8) 37. Qxf8+ {[%emt 0:00:37]} Kxf8 {[%emt 0:00:03]} 38. Nxg3 {[%emt 0:00:27]} Nd3 {[%emt 0:00:51]} 39. Bxg7+ {[%emt 0:00:20]} Kxg7 {[%emt 0:00:11]} 40. Nxf5+ {[%emt 0:00:09][%mdl 4096] Endgame KN-KN} Kf6 {[%emt 0:00:10]} 41. Nd4 {[%emt 0:41:28]} Ke5 {[%emt 0:31:12]} 42. h4 {[%emt 0:01:28][%cal Bh3h4,Bh4h5,Bh5h6,Bh6h7][%mdl 32]} Ke4 {[%emt 0:00:39]} 43. h5 {[%emt 0:00:47]} Kxe3 {[%emt 0:00:48] [#]} 44. h6 $1 {[%emt 0:01:04] White threatens h7 and mate.} Ne5 {[%emt 0:00:00]} 45. h7 {[%emt 0:00:00]} Nf7 {[%emt 0:00:00]} 46. Nf5+ {[%emt 0:00:00]} Kd3 {[%emt 0:00:00] [#]} 47. Nd6 $1 {[%emt 0:00:00][%mdl 512]} Nh8 {[%emt 0:00:00]} 48. Nxb7 {[%emt 0:00:00] Nc5+ would kill now.} Kc3 {[%emt 0:00:00]} 49. Nc5 {[%emt 0:00:00]} a5 {[%emt 0:00:00]} 50. a3 {[%emt 0:00:00] Weighted Error Value: White=0.20 (precise) /Black=0.47} 1-0

[Event "34th GER-ch Seniors-50 2022"]
[Site "Magdeburg"]
[Date "2022.08.18"]
[Round "7.7"]
[White "Wenner, Tobias"]
[Black "Krause, Ullrich"]
[Result "1/2-1/2"]
[ECO "A13"]
[WhiteElo "2099"]
[BlackElo "2190"]
[Annotator "RC"]
[PlyCount "125"]
[EventDate "2022.08.12"]
[EventType "swiss"]
[EventCountry "GER"]
[SourceTitle "playchess.com"]
[Source "ChessBase"]
[SourceQuality "1"]
[TimeControl "40/5400+30:1800+30"]

1. Nf3 {[%emt 0:00:03]} Nf6 {[%emt 0:01:21]} 2. c4 {[%emt 0:00:09]} e6 {[%emt 0:03:20]} 3. g3 {[%emt 0:00:14]} a6 {[%emt 0:00:37]} 4. Bg2 {[%emt 0:00:36]} b5 {[%emt 0:05:33]} 5. b3 {[%emt 0:01:44]} Bb7 {[%emt 0:02:12]} 6. O-O {[%emt 0:00:21]} c5 {[%emt 0:00:56]} 7. Bb2 {[%emt 0:01:53]} Be7 {[%emt 0:02:04]} 8. d3 {[%emt 0:01:37]} O-O {[%emt 0:03:03]} 9. Nbd2 {[%emt 0:00:19]} d5 {[%emt 0:08:56]} 10. e3 {[%emt 0:11:42]} Nbd7 {[%emt 0:12:43]} 11. Qe2 {[%emt 0:02:29]} Qc7 {[%emt 0:00:50]} 12. cxd5 {[%emt 0:14:04]} Bxd5 {[%emt 0:10:33]} 13. Rac1 {[%emt 0:07:06]} Rac8 {[%emt 0:04:16]} 14. Rfd1 {[%emt 0:00:47]} Qb8 {[%emt 0:01:05]} 15. d4 {[%emt 0:04:31]} Qa8 {[%emt 0:02:55]} 16. Qf1 {[%emt 0:02:20]} Ne4 {[%emt 0:04:51]} 17. Nxe4 {[%emt 0:08:59]} Bxe4 {[%emt 0:00:11]} 18. dxc5 {[%emt 0:00:34]} Nxc5 {[%emt 0:02:08]} 19. Nd4 {[%emt 0:01:11]} Rfd8 {[%emt 0:06:58]} 20. Bxe4 {[%emt 0:01:32]} Qxe4 {[%emt 0:00:34]} 21. Qg2 {[%emt 0:00:22]} Qxg2+ {[%emt 0:02:31]} 22. Kxg2 {[%emt 0:00:05]} g6 {[%emt 0:10:20]} 23. b4 {[%emt 0:13:29]} Na4 {[%emt 0:02:10]} 24. Nc6 {[%emt 0:00:05]} Rxd1 {[%emt 0:01:12]} 25. Nxe7+ {[%emt 0:00:30]} Kf8 {[%emt 0:00:23]} 26. Nxg6+ {[%emt 0:02:18]} hxg6 {[%emt 0:00:32]} 27. Rxc8+ {[%emt 0:00:07]} Ke7 {[%emt 0:00:07]} 28. Bd4 {[%emt 0:02:23]} f6 {[%emt 0:06:53]} 29. Ra8 {[%emt 0:04:08]} e5 {[%emt 0:00:51]} 30. Bc5+ {[%emt 0:00:09]} Nxc5 {[%emt 0:04:11]} 31. bxc5 {[%emt 0:00:10]} Rc1 {[%emt 0:00:32]} 32. Rxa6 {[%emt 0:00:22]} Rxc5 {[%emt 0:00:10]} 33. h4 {[%emt 0:04:23]} Rc2 {[%emt 0:00:20]} 34. e4 {[%emt 0:02:57]} Kf7 {[%emt 0:00:56]} 35. g4 {[%emt 0:01:07]} Rc4 {[%emt 0:00:19]} 36. f3 {[%emt 0:02:59]} Kg7 {[%emt 0:01:04]} 37. Kg3 {[%emt 0:00:43]} b4 {[%emt 0:00:27]} 38. Ra7+ {[%emt 0:02:16]} Kg8 {[%emt 0:00:50]} 39. h5 {[%emt 0:02:06]} g5 {[%emt 0:00:14]} 40. Rb7 {[%emt 0:00:26]} Rc2 {[%emt 0:00:15]} 41. Rxb4 {[%emt 0:31:14]} Rxa2 {[%emt 0:30:13]} 42. Rb1 {[%emt 0:00:23]} Kg7 {[%emt 0:00:27]} 43. Rf1 {[%emt 0:00:06]} Rb2 {[%emt 0:00:41]} 44. Rf2 {[%emt 0:00:10]} Rb3 {[%emt 0:00:24]} 45. Rd2 {[%emt 0:01:08]} Ra3 {[%emt 0:00:00]} 46. Kf2 {[%emt 0:00:00]} Rb3 {[%emt 0:00:00]} 47. Ke2 {[%emt 0:00:00]} Ra3 {[%emt 0:00:00]} 48. Rd3 {[%emt 0:00:00]} Ra2+ {[%emt 0:00:00]} 49. Ke3 {[%emt 0:00:00]} Ra7 {[%emt 0:00:00]} 50. Rb3 {[%emt 0:00:00]} Rd7 {[%emt 0:00:00]} 51. Rd3 {[%emt 0:00:00]} Ra7 {[%emt 0:00:00]} 52. Kd2 {[%emt 0:00:00]} Rc7 {[%emt 0:00:00]} 53. Rc3 {[%emt 0:00:00]} Rd7+ {[%emt 0:00:00]} 54. Kc2 {[%emt 0:00:00]} Kf7 {[%emt 0:00:00]} 55. Rd3 {[%emt 0:00:00]} Rc7+ {[%emt 0:00:00]} 56. Kb3 {[%emt 0:00:00]} Kg7 {[%emt 0:00:00]} 57. Kb4 {[%emt 0:00:00]} Kf7 {[%emt 0:00:00]} 58. Rd5 {[%emt 0:00:00]} Rb7+ {[%emt 0:00:00]} 59. Kc4 {[%emt 0:00:00]} Rc7+ {[%emt 0:00:09]} 60. Rc5 {[%emt 0:00:00]} Rd7 {[%emt 0:00:24]} 61. Kc3 {[%emt 0:00:00]} Ra7 {[%emt 0:00:44]} 62. Kb4 {[%emt 0:00:00]} Rb7+ {[%emt 0:00:57]} 63. Kc4 {[%emt 0:15:43]} 1/2-1/2